bitfinex-derivatives/quotes_ETHF0:USTF0_20250126
["timestamp","ask_amount","ask_price","bid_price","bid_amount"]
[1737861052624,0.4769,3330.2,3330.0,0.60073]
[1737861052810,0.4769,3330.2,3330.1,0.5072]
[1737861054510,0.4769,3330.2,3330.1,1.10793]
[1737861056011,0.4769,3330.2,3330.1,0.5072]
[1737861056919,0.4769,3330.2,3330.1,1.10793]
[1737861057321,0.4769,3330.2,3330.1,0.5072]
[1737861057524,0.4769,3330.2,3330.1,1.10793]
[1737861058327,1.07761,3330.2,3330.1,0.5072]
[1737861058823,0.4769,3330.2,3330.1,0.5072]
[1737861060222,0.4769,3330.2,3330.1,1.10793]
[1737861060421,1.07761,3330.2,3330.1,0.5072]
[1737861060623,0.4769,3330.2,3330.0,0.60074]
[1737861061920,0.4769,3330.2,3330.1,0.60073]
[1737861065224,0.5134,3330.3,3330.1,0.60073]
[1737861065427,0.5134,3330.3,3330.2,0.48]
[1737861066825,1.11409,3330.3,3330.2,0.48]
[1737861068133,1.11409,3330.3,3330.0,0.60073]
[1737861068327,1.11409,3330.3,3329.6,0.5007]
[1737861068328,0.4803,3330.2,3329.6,0.5007]
[1737861068534,0.60079,3329.8,3329.5,4.31692]
[1737861068729,1.5647,3329.7,3329.5,0.5083]
[1737861069033,1.4573,3329.7,3329.5,0.5083]
[1737861070135,1.4573,3329.7,3329.5,1.10913]
[1737861070825,1.4573,3329.7,3329.5,0.5083]
[1737861071428,1.4573,3329.7,3329.5,1.10913]
[1737861073629,0.9639,3329.7,3329.5,1.10913]
[1737861076632,0.9639,3329.7,3329.6,0.00179912]
[1737861078836,0.9639,3329.7,3329.6,0.60261912]
[1737861079431,6.1868,3330.3,3329.6,0.00179912]
[1737861079628,0.509,3330.2,3329.8,0.97466256]
[1737861079831,0.509,3330.2,3329.9,1.09486]
[1737861079832,1.10972,3330.2,3329.9,1.09486]
[1737861080131,0.509,3330.2,3330.0,0.60074]
[1737861081134,1.10971,3330.2,3329.9,1.57156]
[1737861081331,0.60074,3330.0,3329.9,0.9708]
[1737861081630,0.60077,3329.9,3329.6,0.60259912]
[1737861081835,1.08347,3329.9,3329.6,1.08509912]
[1737861082037,0.5029,3329.8,3329.6,1.08509912]
[1737861082340,1.10368,3329.8,3329.6,0.48429912]
[1737861082831,0.5029,3329.8,3329.6,1.08510912]
[1737861083835,0.5029,3329.8,3329.6,0.48429912]
[1737861084036,0.5029,3329.8,3329.7,0.6008]
[1737861085039,0.5029,3329.8,3329.6,0.48429912]
[1737861085339,0.5029,3329.8,3329.6,1.08510912]
[1737861086338,0.6008,3329.7,3329.6,0.00179912]
[1737861087836,0.994,3329.8,3329.6,0.00179912]
[1737861088335,1.59479,3329.8,3329.6,0.00179912]
[1737861089035,1.59479,3329.8,3329.6,0.48889912]
[1737861092137,0.6008,3329.7,3329.6,0.48889912]
[1737861092445,0.994,3329.8,3329.6,0.48889912]
[1737861092741,1.59479,3329.8,3329.6,0.48889912]
[1737861092941,0.6008,3329.7,3329.6,0.48889912]
[1737861093240,1.59479,3329.8,3329.6,0.48889912]
[1737861094042,0.5029,3329.8,3329.6,0.48889912]
[1737861094354,0.5029,3329.8,3329.6,1.08970912]
[1737861094935,1.10368,3329.8,3329.6,0.48889912]
[1737861095343,1.10368,3329.8,3329.6,1.08970912]
[1737861095545,0.5029,3329.8,3329.6,1.08970912]
[1737861096043,0.5029,3329.8,3329.7,0.4964]
[1737861096240,0.5044,3330.1,3329.9,0.60075]
[1737861096438,0.38339102,3330.0,3329.8,0.60077]
[1737861096638,0.38339102,3330.0,3329.7,0.9784]
[1737861096840,0.38339102,3330.0,3329.9,0.60076]
[1737861097039,0.5148,3330.1,3329.7,0.9784]
[1737861097342,0.5148,3330.1,3330.0,0.60074]
[1737861097645,1.19854742,3330.1,3330.0,0.60074]
[1737861097845,0.89830036,3330.1,3329.7,0.9784]
[1737861098045,0.38349896,3330.0,3329.9,0.60075]
[1737861098838,0.68389188,3330.2,3330.0,0.60074]
[1737861099045,0.68389188,3330.2,3330.1,0.496]
[1737861100650,0.38349896,3330.2,3330.1,0.496]
[1737861101041,3.80849,3330.3,3330.1,0.496]
[1737861101241,3.80849,3330.3,3330.2,0.9581]
[1737861101645,5.46708906,3330.3,3330.2,0.9581]
[1737861102349,5.16676675,3330.3,3330.2,0.9581]
[1737861102546,5.16676675,3330.3,3330.2,0.4806]
[1737861102745,5.68926675,3330.3,3330.2,0.4806]
[1737861103345,5.30566894,3330.3,3330.2,0.4806]
[1737861103651,5.08842114,3330.3,3329.7,3.2078]
[1737861103849,0.60075,3330.0,3329.7,3.80859]
[1737861104151,0.97467894,3330.1,3329.6,3.71579912]
[1737861104348,0.6008,3329.7,3329.6,0.50799912]
[1737861104551,0.60079,3329.8,3329.6,0.00179912]
[1737861104851,0.6008,3329.7,3329.6,0.51359912]
[1737861106649,1.12359,3329.8,3329.6,0.51359912]
[1737861106851,0.60079,3329.8,3329.7,0.4866]
[1737861107649,1.09978,3329.9,3329.7,0.4866]
[1737861107851,0.60075,3330.0,3329.7,1.08738]
[1737861108055,0.60076,3330.0,3329.7,1.08738]
[1737861108248,0.60076,3329.9,3329.7,1.08738]
[1737861108847,0.4831,3330.2,3329.7,1.08738]
[1737861109043,0.60075,3330.0,3329.7,1.08738]
[1737861109251,0.4831,3330.2,3329.7,0.4866]
[1737861109552,0.60076,3330.0,3329.7,0.4866]
[1737861110849,0.4831,3330.2,3329.7,0.4866]
[1737861111148,1.16680855,3330.2,3329.7,0.4866]
[1737861111347,0.60077,3329.9,3329.7,0.4866]
[1737861112657,0.4831,3330.2,3329.7,0.4866]
[1737861112957,0.60078,3329.8,3329.7,0.4866]
[1737861114255,2.54232395,3330.2,3329.6,0.00179912]
[1737861114456,0.6008,3329.7,3329.6,0.00179912]
[1737861116457,0.60084,3329.5,3329.4,0.00449863]
[1737861116854,0.98446173,3329.5,3329.4,0.00449863]
[1737861117862,0.60084,3329.5,3329.4,0.00449863]
[1737861118063,1.28467557,3329.5,3329.4,0.00449863]
[1737861118563,4.49235491,3329.5,3329.4,0.00449863]
[1737861119163,4.19218186,3329.5,3329.4,0.00449863]
[1737861120972,3.80864,3329.5,3329.4,0.00449863]
[1737861121265,0.60084,3329.5,3329.4,0.00449863]
[1737861124878,6.26072395,3329.9,3329.4,0.00449863]
[1737861125078,0.60082,3329.6,3329.4,0.00449863]
[1737861126576,0.60083,3329.5,3329.4,0.00449863]
[1737861126774,0.60082,3329.6,3329.4,0.00449863]
[1737861127170,0.60083,3329.5,3329.4,0.00449863]
[1737861130082,0.98396282,3329.5,3329.4,0.00449863]
[1737861131675,0.60083,3329.5,3329.4,0.00449863]
[1737861131983,0.98393837,3329.5,3329.4,0.00449863]
[1737861132782,0.60083,3329.5,3329.4,0.00449863]
[1737861132988,3.66207928,3329.5,3328.8,0.5196]
[1737861133178,0.60094,3328.9,3328.8,0.5196]
[1737861136086,0.60093,3329.0,3328.8,0.5196]
[1737861136588,0.60539565,3329.2,3328.9,0.60094]
[1737861136889,0.60539565,3329.2,3329.0,0.4976]
[1737861137083,0.60539565,3329.2,3329.1,0.5015]
[1737861138384,0.00450565,3329.2,3329.1,0.5015]
[1737861139784,0.60539565,3329.2,3329.1,0.5015]
[1737861141694,0.60091,3329.1,3329.0,0.4976]
[1737861141888,1.08451,3329.1,3329.0,0.4976]
[1737861142488,0.60094,3328.9,3328.8,0.5196]
[1737861143286,0.4836,3329.1,3328.6,3.7064]
[1737861143497,0.60098,3328.7,3328.6,3.2078]
[1737861148093,1.07608,3328.7,3328.6,3.2078]
[1737861149394,0.601,3328.6,3328.5,0.00450565]
[1737861155401,0.60099,3328.7,3328.5,0.00450565]
[1737861155698,0.601,3328.6,3328.5,0.50300565]
[1737861155896,0.9765,3329.1,3328.6,0.60099]
[1737861156096,1.4946,3329.1,3328.7,0.5099]
[1737861156500,0.60095,3328.9,3328.7,0.5099]
[1737861157301,1.4946,3329.1,3328.7,0.5099]
[1737861157508,3.21230565,3329.2,3328.7,0.5099]
[1737861157803,3.21230565,3329.2,3329.0,0.60092]
[1737861158105,0.00450565,3329.2,3328.8,0.60096]
[1737861158305,0.00450565,3329.2,3329.0,0.60091]
[1737861158805,0.00450565,3329.2,3329.1,0.4933]
[1737861163309,0.00450565,3329.2,3329.1,1.0096]
[1737861167006,0.00450565,3329.2,3329.1,1.61051]
[1737861167202,0.00450565,3329.2,3329.1,1.0096]
[1737861168004,0.00450565,3329.2,3329.1,1.61051]
[1737861168207,0.00450565,3329.2,3329.1,1.0096]
[1737861170213,0.00450565,3329.2,3329.1,1.61051]
[1737861172112,0.00450565,3329.2,3329.1,1.0096]
[1737861172304,0.60539565,3329.2,3329.1,1.0096]
[1737861174316,0.60539565,3329.2,3328.8,3.2078]
[1737861174317,2.0637296,3329.2,3328.8,3.2078]
[1737861174511,0.60098,3328.7,3328.6,0.4924]
[1737861176809,0.517,3329.0,3328.5,0.51810565]
[1737861177010,1.1027,3328.6,3328.5,0.51810565]
[1737861178112,1.1027,3328.6,3328.5,0.00450565]
[1737861182912,5.03822395,3328.9,3328.5,0.00450565]
[1737861182913,2.979,3328.9,3328.5,0.00450565]
[1737861183108,3.4913,3328.9,3328.5,0.60551565]
[1737861183313,0.60099,3328.7,3328.5,0.00450565]
[1737861183521,0.60099,3328.7,3328.6,0.4863]
[1737861184517,0.601,3328.6,3328.5,0.00450565]
[1737861190221,1.1204,3328.6,3328.5,0.00450565]
[1737861190420,3.17962395,3328.6,3328.5,0.00450565]
[1737861190612,3.56269613,3328.6,3328.5,0.00450565]
[1737861191223,3.17962395,3328.6,3328.5,0.00450565]
[1737861192116,3.56260284,3328.6,3328.5,0.00450565]
[1737861192923,3.17962395,3328.6,3328.5,0.00450565]
[1737861195822,6.15862395,3328.6,3328.5,0.00450565]
[1737861197626,5.07519362,3328.6,3328.5,0.00450565]
[1737861201332,5.45843721,3328.6,3328.5,0.00450565]
[1737861201630,5.07519362,3328.6,3328.5,0.00450565]
[1737861202429,5.45854744,3328.6,3328.5,0.00450565]
[1737861207426,2.47954744,3328.6,3328.5,0.00450565]
[1737861214036,2.78004746,3328.6,3328.5,0.00450565]
[1737861214629,2.47954744,3328.6,3328.5,0.00450565]
[1737861215236,2.78011043,3328.6,3328.5,0.00450565]
[1737861217144,0.68391681,3328.6,3328.5,0.60552565]
[1737861217344,0.38335382,3328.6,3328.5,0.60552565]
[1737861217535,0.38335382,3328.7,3328.5,1.12042565]
[1737861217936,0.97579362,3328.8,3328.6,1.0782]
[1737861218137,0.97579362,3328.8,3328.7,0.60098]
[1737861218744,0.97579362,3329.0,3328.6,0.4772]
[1737861218946,0.97579362,3329.0,3328.8,0.60095]
[1737861219246,0.97579362,3329.0,3328.9,0.5141]
[1737861229162,0.97579362,3329.0,3328.9,1.11504]
[1737861229365,0.97579362,3329.0,3328.9,0.5141]
[1737861240172,1.57672362,3329.0,3328.9,0.5141]
[1737861240871,0.97579362,3329.0,3328.9,0.5141]
[1737861242871,0.97579362,3329.0,3328.8,3.2078]
[1737861244169,0.4872,3328.9,3328.8,3.2078]
[1737861244774,0.4872,3328.9,3328.7,0.60097]
[1737861245076,0.97579362,3328.8,3328.7,0.60097]
[1737861246580,0.97579362,3328.8,3328.5,0.00450565]
[1737861246778,1.57679362,3328.6,3328.5,0.00450565]
[1737861249272,0.97579362,3328.6,3328.5,0.00450565]
[1737861249572,1.57679362,3328.6,3328.5,0.00450565]
[1737861249777,1.57679362,3328.6,3328.5,1.02030565]
[1737861251478,0.97579362,3328.6,3328.5,1.02030565]
[1737861253379,1.57679362,3328.6,3328.5,1.02030565]
[1737861255173,0.97579362,3328.6,3328.5,1.02030565]
[1737861255378,1.57679362,3328.6,3328.5,1.02030565]
[1737861256077,0.97579362,3328.6,3328.5,1.02030565]
[1737861256274,0.97579362,3328.6,3328.5,1.62132565]
[1737861256475,0.97579362,3328.6,3328.5,1.02030565]
[1737861257679,1.57679362,3328.6,3328.5,1.02030565]
[1737861257873,0.97579362,3328.6,3328.5,1.02030565]
[1737861261583,0.97579362,3328.6,3328.5,1.62132565]
[1737861268183,0.97579362,3328.8,3328.5,1.02030565]
[1737861268383,2.979,3328.9,3328.8,0.60096]
[1737861269993,0.97579362,3329.0,3328.9,0.60094]
[1737861271892,0.97579362,3329.0,3328.9,1.61624]
[1737861273484,0.98029927,3329.2,3329.1,0.60091]
[1737861281496,0.98029927,3329.2,3329.0,1.07642]
[1737861281691,0.98029927,3329.2,3329.0,0.4755]
[1737861282191,0.98029927,3329.2,3329.0,1.07643]
[1737861283898,0.00450565,3329.2,3329.0,0.4755]
[1737861284093,4.18359362,3330.1,3329.1,0.97579362]
[1737861284294,0.5085,3330.0,3329.7,0.60079]
[1737861284490,0.5085,3330.0,3329.8,1.10087]
[1737861284796,0.5085,3330.0,3329.8,0.5001]
[1737861284997,1.10925,3330.0,3329.8,0.5001]
[1737861285295,0.5085,3330.0,3329.8,0.5001]
[1737861285800,0.5085,3330.0,3329.8,1.10087]
[1737861286192,0.5085,3330.0,3329.8,0.5001]
[1737861286696,0.5085,3330.0,3329.8,1.10087]
[1737861287701,0.5085,3330.0,3329.8,0.5001]
[1737861287903,0.5085,3330.0,3329.9,0.60076]
[1737861288401,0.5085,3330.0,3329.8,0.5001]
[1737861288402,4.18359362,3330.1,3330.0,0.60074]
[1737861289500,3.2078,3330.1,3330.0,0.60074]
[1737861289693,0.00450565,3330.2,3330.1,0.60073]
[1737861295499,0.00450565,3330.2,3329.8,0.5001]
[1737861295798,0.00450565,3330.2,3330.0,0.60074]
[1737861296291,0.00450565,3330.2,3330.1,0.60073]
[1737861297005,0.00450565,3330.2,3330.0,0.60073]
[1737861298400,0.60521565,3330.2,3330.0,0.60073]
[1737861299401,0.00450565,3330.2,3330.1,0.60073]
[1737861319333,1.66438059,3330.2,3329.8,3.7079]
[1737861319543,0.60076,3329.9,3329.8,3.2078]
[1737861319734,1.28490163,3329.9,3329.8,3.2078]
[1737861319925,0.60084,3329.5,3329.2,4.2107]
[1737861320127,0.4932,3329.4,3329.2,1.60378]
[1737861320937,0.4932,3329.4,3329.3,0.60087]
[1737861321126,4.18359362,3329.5,3329.2,1.0029]
[1737861321322,3.2078,3329.5,3329.4,0.60085]
[1737861322331,3.2078,3329.5,3329.2,1.0029]
[1737861322727,4.78443362,3329.5,3329.2,1.60378]
[1737861322933,0.60085,3329.4,3329.2,1.60378]
[1737861323139,4.18359362,3329.5,3329.2,1.60378]
[1737861323332,4.78443362,3329.5,3329.2,1.60378]
[1737861324027,4.78443362,3329.5,3329.2,1.0029]
[1737861324028,4.18359362,3329.5,3329.2,1.0029]
[1737861324225,1.57666362,3329.3,3329.1,0.4807]
[1737861324643,0.5138,3329.2,3329.1,0.4807]
[1737861325435,0.5138,3329.2,3329.1,1.08161]
[1737861326031,4.78443362,3329.5,3329.3,0.60087]
[1737861326737,3.2078,3329.5,3329.4,1.11965]
[1737861327440,3.2078,3329.5,3329.4,1.63115]
[1737861329136,3.2078,3329.5,3329.4,1.0303]
[1737861330343,4.18359362,3329.5,3329.1,0.4807]
[1737861330546,0.60087,3329.4,3329.1,1.0816]
[1737861331040,0.60087,3329.4,3329.2,0.5069]
[1737861331342,0.60087,3329.4,3329.2,1.10779]
[1737861335045,4.66219362,3329.5,3329.2,1.10779]
[1737861335239,5.26304362,3329.5,3329.2,1.10779]
[1737861336251,5.26304362,3329.5,3329.3,0.60087]
[1737861336549,3.80865,3329.5,3329.3,1.09647]
[1737861336849,3.2078,3329.5,3329.4,0.60085]
[1737861338042,3.2078,3329.5,3329.3,0.4956]
[1737861338349,3.2078,3329.5,3329.3,1.09646]
[1737861339950,0.60085,3329.4,3329.3,0.4956]
[1737861340148,0.60087,3329.3,3329.2,0.5069]
[1737861340448,0.60086,3329.4,3329.2,1.10779]
[1737861341654,3.80864,3329.5,3329.3,0.60087]
[1737861341847,0.60087,3329.4,3329.2,1.10778]
[1737861343451,0.60087,3329.3,3329.2,0.5069]
[1737861345655,3.80864,3329.5,3329.3,0.60086]
[1737861346758,3.2078,3329.5,3329.4,0.60085]
[1737861352663,0.60079,3329.8,3329.3,0.97579362]
[1737861352863,0.60079,3329.8,3329.6,0.60081]
[1737861353355,0.60079,3329.8,3329.7,0.5154]
[1737861355155,4.18359362,3329.9,3329.7,0.5154]
[1737861355156,4.78436362,3329.9,3329.7,0.5154]
[1737861357565,0.60078,3329.8,3329.7,0.5154]
[1737861360467,4.18359362,3329.9,3329.1,1.45649362]
[1737861360667,1.57664362,3329.5,3329.2,1.08788]
[1737861360869,0.60086,3329.4,3329.2,1.08788]
[1737861361165,1.08976,3329.4,3329.2,1.08788]
[1737861361359,0.4889,3329.4,3329.2,1.08788]
[1737861361759,1.08976,3329.4,3329.2,1.08788]
[1737861362172,0.4889,3329.4,3329.3,0.60087]
[1737861362469,1.08975,3329.4,3329.2,1.08788]
[1737861362869,1.08975,3329.4,3329.3,0.60087]
[1737861363369,4.18359362,3329.9,3329.2,0.487]
[1737861363669,0.60081,3329.7,3329.5,0.60083]
[1737861363863,0.60081,3329.7,3329.6,0.5197]
[1737861364065,0.60081,3329.7,3329.6,1.0138]
[1737861365162,1.09428,3329.8,3329.6,1.6146]
[1737861365565,1.09428,3329.8,3329.6,1.0138]
[1737861367162,0.4935,3329.8,3329.6,1.61461]
[1737861367362,0.4935,3329.8,3329.7,0.6008]
[1737861367563,3.2078,3329.9,3329.7,0.6008]
[1737861367758,3.2078,3329.9,3329.7,1.0761]
[1737861367963,3.80856,3329.9,3329.7,0.4753]
[1737861369163,3.2078,3329.9,3329.7,1.07609]
[1737861369468,3.80857,3329.9,3329.7,1.07609]
[1737861370266,3.2078,3329.9,3329.7,1.07609]
[1737861370466,3.80856,3329.9,3329.7,1.07609]
[1737861370666,3.2078,3329.9,3329.7,0.4753]
[1737861370969,0.60079,3329.8,3329.6,1.0138]
[1737861371370,0.4898,3329.7,3329.6,1.0138]
[1737861373374,0.60087,3329.3,3329.2,3.2078]
[1737861373968,1.59577,3329.3,3329.2,3.2078]
[1737861374271,1.59577,3329.3,3329.0,1.57002]
[1737861374577,1.59577,3329.3,3329.2,0.60089]
[1737861374578,0.9949,3329.3,3329.2,0.60089]
[1737861374869,0.4898,3329.3,3329.2,0.60089]
[1737861375062,0.4898,3329.3,3329.2,1.09359]
[1737861376474,0.4898,3329.3,3329.2,0.4927]
[1737861377077,1.09067,3329.3,3329.2,0.4927]
[1737861378365,1.09067,3329.3,3329.0,1.57001]
[1737861378571,0.4992,3329.2,3329.1,0.60091]
[1737861379277,0.60092,3329.1,3328.9,1.57673362]
[1737861379476,1.1001,3329.2,3329.0,0.60093]
[1737861379972,3.2078,3329.5,3328.9,0.97579362]
[1737861380176,3.2078,3329.5,3328.8,0.4973]
[1737861380177,0.60086,3329.4,3329.2,0.60088]
[1737861380381,0.60088,3329.3,3329.1,1.57669362]
[1737861380676,1.10008,3329.3,3329.1,1.57669362]
[1737861381071,1.10008,3329.3,3329.1,0.6009]
[1737861382180,1.10008,3329.3,3329.0,0.60092]
[1737861382576,0.4992,3329.3,3328.9,0.97579362]
[1737861382881,0.6009,3329.2,3328.9,1.57672362]
[1737861383178,0.60091,3329.1,3328.9,1.57672362]
[1737861383676,0.4937,3329.0,3328.9,1.57672362]
[1737861383876,0.60091,3329.1,3328.9,1.57672362]
[1737861385078,0.6009,3329.2,3329.0,0.60093]
[1737861385576,0.9929,3329.3,3328.9,0.97579362]
[1737861385778,0.9929,3329.3,3329.1,0.6009]
[1737861386074,0.9929,3329.3,3329.2,1.07459]
[1737861386276,0.9929,3329.3,3329.2,0.4737]
[1737861386472,0.9929,3329.3,3329.2,1.07459]
[1737861387480,3.80865,3329.5,3329.2,1.07458]
[1737861387678,1.10756,3329.4,3329.2,1.07458]
[1737861387977,1.10756,3329.4,3329.3,0.4889]
[1737861388477,3.80865,3329.5,3329.3,1.08976]
[1737861388673,4.31535,3329.5,3329.3,1.08976]
[1737861389583,0.60085,3329.4,3329.3,0.4889]
[1737861389780,1.12315,3329.4,3329.3,0.4889]
[1737861394789,0.5223,3329.4,3329.3,0.4889]
[1737861395090,1.12315,3329.4,3329.3,0.4889]
[1737861403294,1.49809362,3329.4,3329.2,0.4737]
[1737861403490,0.60091,3329.1,3329.0,0.4929]
[1737861406798,0.60093,3329.0,3328.8,1.10335]
[1737861406999,1.08823,3329.0,3328.8,1.58595]
[1737861407501,0.4873,3329.0,3328.9,0.60094]
[1737861407699,0.4873,3329.0,3328.8,0.985]
[1737861408099,0.4873,3329.0,3328.9,0.60094]
[1737861408500,1.08823,3329.0,3328.8,1.58595]
[1737861409001,0.4873,3329.0,3328.9,0.60094]
[1737861409392,1.08823,3329.0,3328.9,0.60094]
[1737861409595,0.4873,3329.0,3328.9,0.60094]
[1737861414904,0.60088,3329.3,3329.1,0.60091]
[1737861415403,0.60088,3329.3,3329.2,1.0317]
[1737861415605,0.97579362,3329.4,3329.3,0.60087]
[1737861415800,0.97579362,3329.4,3329.3,1.08107]
[1737861417999,3.2078,3329.5,3329.3,1.08107]
[1737861418304,3.2078,3329.5,3329.4,0.60085]
[1737861421406,3.2078,3329.9,3329.8,0.60078]
[1737861422006,3.2078,3329.9,3329.8,1.61358]
[1737861422500,0.00450565,3330.2,3330.1,0.60073]
[1737861425411,0.60074,3330.1,3329.8,1.61357]
[1737861425617,5.29043362,3330.0,3329.8,1.61357]
[1737861425815,5.29043362,3330.0,3329.8,1.0128]
[1737861425816,0.60076,3329.9,3329.8,1.0128]
[1737861426116,4.68969362,3330.0,3329.7,0.6008]
[1737861426414,0.97579362,3329.8,3329.7,0.6008]
[1737861427614,0.97579362,3329.8,3329.6,0.60081]
[1737861428213,0.97579362,3329.8,3329.6,0.6008]
[1737861428809,0.60077,3329.9,3329.6,0.6008]
[1737861429809,0.60079,3329.8,3329.5,1.11122]
[1737861430017,5.29044362,3330.0,3329.6,0.97579362]
[1737861430218,3.7139,3330.0,3329.9,0.60076]
[1737861430415,3.2078,3330.0,3329.9,0.60076]
[1737861430922,0.98029927,3330.2,3330.0,0.60073]
[1737861431215,1.45939927,3330.2,3330.0,0.60073]
[1737861431718,1.45939927,3330.2,3330.0,1.09783]
[1737861432320,1.45939927,3330.2,3329.9,0.4962]
[1737861432517,3.80855,3330.0,3329.7,0.60079]
[1737861432727,0.60076,3329.9,3329.7,0.60079]
[1737861432922,4.78435362,3330.0,3329.7,0.60079]
[1737861433112,0.60076,3329.9,3329.7,0.60079]
[1737861433625,0.5169,3329.8,3329.7,0.60079]
[1737861434423,3.80855,3330.0,3329.6,0.97579362]
[1737861434424,3.2078,3330.0,3329.9,0.60076]
[1737861434617,3.2078,3330.0,3329.8,0.60077]
[1737861435017,3.2078,3330.0,3329.9,0.9858]
[1737861436225,0.00450565,3330.2,3329.9,0.9858]
[1737861436417,0.00450565,3330.2,3330.1,0.60073]
[1737861465943,0.5044,3330.8,3330.7,0.60062]
[1737861466151,0.5044,3330.8,3330.7,1.57641362]
[1737861467344,0.5044,3330.8,3330.7,0.97579362]
[1737861468039,0.5044,3330.8,3330.7,1.57641362]
[1737861469344,0.5044,3330.8,3330.7,0.97579362]
[1737861469544,0.5044,3330.8,3330.7,1.57641362]
[1737861477654,3.2078,3330.9,3330.7,0.97579362]
[1737861477853,3.2078,3330.9,3330.8,0.6006]
[1737861479654,3.2078,3331.8,3330.8,4.18359362]
[1737861479859,3.2078,3331.8,3331.5,0.60047]
[1737861479860,0.4852,3331.6,3331.5,0.60047]
[1737861480854,0.4852,3331.6,3331.5,1.57626362]
[1737861485864,3.2078,3331.8,3331.5,0.97579362]
[1737861486065,3.2078,3331.8,3331.7,1.57623362]
[1737861486268,3.2078,3331.8,3331.7,0.97579362]
[1737861486663,3.80822,3331.8,3331.7,0.97579362]
[1737861488159,3.2078,3331.8,3331.7,0.97579362]
[1737861488361,3.2078,3331.8,3331.7,1.57623362]
[1737861489463,0.5241,3332.0,3331.7,0.97579362]
[1737861489669,0.5241,3332.0,3331.9,1.57619362]
[1737861491873,0.493,3332.1,3332.0,0.60038]
[1737861492270,0.493,3332.1,3332.0,1.07538]
[1737861493869,0.493,3332.1,3332.0,0.60038]
[1737861494768,0.60045,3331.7,3331.5,1.57625362]
[1737861494969,1.0126,3331.6,3331.3,3.92779362]
[1737861495173,0.60049,3331.4,3331.3,3.92779362]
[1737861496070,0.60048,3331.5,3331.3,4.52830362]
[1737861496577,0.60048,3331.5,3331.3,3.92779362]
[1737861497678,0.60049,3331.4,3331.3,3.92779362]
[1737861497880,1.11809,3331.4,3331.3,3.92779362]
[1737861498379,0.5176,3331.4,3331.3,4.52830362]
[1737861498580,1.0126,3331.6,3331.4,0.60049]
[1737861498873,1.0126,3331.6,3331.5,1.57626362]
[1737861499068,0.5181,3331.6,3331.5,1.57626362]
[1737861499269,0.5141,3331.9,3331.5,0.97579362]
[1737861499474,0.5141,3331.9,3331.8,1.57621362]
[1737861500080,0.5196,3332.1,3332.0,0.60038]
[1737861500269,0.5196,3332.1,3332.0,1.57617362]
[1737861501482,0.5141,3332.3,3332.1,0.60036]
[1737861501677,1.0096,3332.3,3332.1,0.60036]
[1737861501981,1.60993,3332.3,3332.1,0.60036]
[1737861503270,1.0096,3332.3,3332.1,0.60036]
[1737861504075,1.0096,3332.3,3332.0,3.6979]
[1737861504281,1.0096,3332.3,3332.2,0.60035]
[1737861504478,0.4955,3332.3,3332.2,0.60035]
[1737861505179,1.08038,3332.6,3332.1,2.55348763]
[1737861505180,1.08038,3332.6,3332.4,0.60031]
[1737861505380,1.58168,3332.6,3332.4,0.60031]
[1737861505785,1.58168,3332.6,3332.3,0.60032]
[1737861505981,1.58168,3332.6,3332.4,0.60031]
[1737861506182,1.58168,3332.6,3332.3,0.60032]
[1737861506384,0.6003,3332.5,3332.3,0.60032]
[1737861507077,0.6003,3332.5,3332.2,0.00450565]
[1737861507281,0.9814,3332.6,3332.2,0.60484565]
[1737861507585,1.08171,3332.4,3332.2,0.60484565]
[1737861507883,1.08171,3332.4,3332.2,0.00450565]
[1737861509085,0.4814,3332.4,3332.2,0.60484565]
[1737861510383,0.4814,3332.4,3332.2,0.00450565]
[1737861510584,1.58168,3332.6,3332.3,0.60032]
[1737861510983,0.9814,3332.6,3332.3,0.60032]
[1737861511182,0.60029,3332.5,3332.3,0.60032]
[1737861511574,0.9814,3332.6,3332.2,0.00450565]
[1737861511575,1.58168,3332.6,3332.4,0.6003]
[1737861513085,1.58168,3332.6,3332.4,1.0793]
[1737861513885,1.58168,3332.6,3332.4,0.479]
[1737861514488,0.4815,3333.1,3332.4,2.53518763]
[1737861514684,1.0102,3333.0,3332.9,2.05618763]
[1737861514987,1.0102,3333.0,3332.9,2.65640763]
[1737861515191,1.0102,3333.0,3332.9,2.05618763]
[1737861516295,1.0102,3333.0,3332.9,2.65640763]
[1737861516588,1.0102,3333.0,3332.9,2.05618763]
[1737861516985,1.6104,3333.0,3332.9,2.05618763]
[1737861517387,1.6104,3333.0,3332.8,0.60022]
[1737861517991,1.6104,3333.0,3332.7,0.60025]
[1737861518887,1.6104,3333.0,3332.8,0.60024]
[1737861519286,1.6104,3333.0,3332.7,0.60024]
[1737861519491,1.0102,3333.0,3332.8,0.60023]
[1737861520088,1.61041,3333.0,3332.8,0.60023]
[1737861520590,1.0102,3333.0,3332.8,0.60023]
[1737861520984,0.516,3333.0,3332.9,0.60022]
[1737861523092,0.516,3333.0,3332.9,2.65640763]
[1737861523389,0.60018,3333.2,3332.9,2.65640763]
[1737861523596,0.60018,3333.2,3333.0,0.4718]
[1737861523893,0.60018,3333.2,3333.0,0.9448]
[1737861524091,0.4935,3333.4,3333.0,0.9448]
[1737861524289,0.60022,3333.0,3332.7,0.60025]
[1737861524686,1.10642,3333.0,3332.7,0.60025]
[1737861525393,0.9843,3333.0,3332.7,0.60025]
[1737861525605,0.60022,3332.9,3332.7,0.60025]
[1737861526494,1.58451,3333.0,3332.7,0.60025]
[1737861528598,1.58451,3333.0,3332.8,0.60024]
[1737861529089,0.9843,3333.0,3332.8,0.60024]
[1737861529798,0.9843,3333.0,3332.9,1.08532]
[1737861532301,0.9843,3333.0,3332.9,0.4851]
[1737861532500,0.9843,3333.0,3332.9,1.08532]
[1737861532999,0.60164136,3333.1,3332.9,1.08532]
[1737861533304,0.00145136,3333.1,3333.0,1.1169]
[1737861533699,0.00145136,3333.1,3333.0,3.06207738]